fUST/lending_fUST_20240227
["ID","MTS","AMOUNT","RATE_DAILY","PERIOD"]
[315452613,1709041844759,-600.07,0.0002,2]
[315452615,1709041844768,-5404.61,0.0002,2]
[315452617,1709041844777,-19966.0937635,0.0002,3]
[315452619,1709041844786,-500.0,0.0002,2]
[315452621,1709041844796,-500.0,0.0002,2]
[315452623,1709041844805,-748.37,0.0002,2]
[315452625,1709041844815,-500.0,0.0002,2]
[315452627,1709041844824,-621.63,0.0002,2]
[315452629,1709041844833,-2093.03,0.0002,2]
[315452631,1709041844843,-500.0,0.0002,2]
[315452633,1709041844852,-263.75226372,0.0002,2]
[315452635,1709041844861,-500.0,0.0002,2]
[315452637,1709041844871,-500.0,0.0002,2]
[315452647,1709041844957,-500.0,0.0002,2]
[315452649,1709041844967,-500.0,0.0002,2]
[315452651,1709041844977,-500.0,0.0002,2]
[315452653,1709041844987,-5393.02,0.0002,2]
[315452655,1709041844995,-1836.34,0.0002,2]
[315452657,1709041845004,-500.0,0.0002,2]
[315452659,1709041845014,-190.33711649,0.0002,2]
[315452661,1709041845023,-4109.24,0.0002,2]
[315452663,1709041845033,-500.0,0.0002,2]
[315452665,1709041845042,-500.0,0.0002,2]
[315452667,1709041845051,-693.7,0.0002,2]
[315452669,1709041845061,-636.90447411,0.0002,2]
[315452671,1709041845071,-1795.67,0.0002,2]
[315452673,1709041845080,-21940.19,0.0002,2]
[315452675,1709041845090,-4126.23,0.0002,2]
[315452677,1709041845100,-500.0,0.0002,2]
[315452679,1709041845110,-500.0,0.0002,2]
[315452680,1709041845119,-500.0,0.0002,2]
[315452683,1709041845130,-2670.12,0.0002,2]
[315452684,1709041845140,-1711.91,0.0002,2]
[315452687,1709041845152,-1122.9,0.0002,2]
[315452689,1709041845162,-971.47,0.0002,2]
[315452691,1709041845172,-573.14809855,0.0002,2]
[315452693,1709041845182,-8449.73,0.0002,2]
[315452695,1709041845192,-1319.0,0.0002,2]
[315452697,1709041845203,-500.0,0.0002,2]
[315452699,1709041845213,-500.0,0.00020028,2]
[315452703,1709041845224,-166.666666,0.00020076,2]
[315452705,1709041845233,-2345.68554267,0.0002009,2]
[315452708,1709041845243,-500.0,0.00020135,2]
[315452712,1709041845255,-500.0,0.00020241,2]
[315452714,1709041845265,-160.0,0.00020272,2]
[315452715,1709041845275,-657.59,0.00020273,2]
[315452717,1709041845286,-988.43,0.00020273,2]
[315452721,1709041845297,-1390.2,0.00020273,2]
[315452723,1709041845306,-500.0,0.00020273,2]
[315452725,1709041845317,-500.0,0.00020273,2]
[315452728,1709041845327,-500.0,0.00020273,2]
[315452729,1709041845337,-500.0,0.00020273,2]
[315452732,1709041845347,-633.28076739,0.00020273,2]
[315452734,1709041845357,-500.0,0.00020273,2]
[315452736,1709041845366,-500.0,0.00020273,2]
[315452738,1709041845376,-500.0,0.00020273,2]
[315452740,1709041845386,-500.0,0.00020273,2]
[315452742,1709041845396,-500.0,0.00020273,2]
[315452744,1709041845405,-500.0,0.00020273,2]
[315452746,1709041845415,-843.21,0.00020273,2]
[315452748,1709041845424,-500.0,0.00020273,2]
[315452750,1709041845433,-527.94508633,0.00020273,2]
[315452751,1709041845443,-500.0,0.00020273,2]
[315452753,1709041845455,-500.0,0.00020273,2]
[315452756,1709041845465,-1507.06,0.00020273,2]
[315452757,1709041845474,-500.0,0.00020273,2]
[315452759,1709041845487,-333.04255885,0.00020273,2]
[315452761,1709041845497,-500.0,0.00020273,2]
[315452763,1709041845509,-500.0,0.00020273,2]
[315452765,1709041845519,-500.0,0.00020273,2]
[315452767,1709041845529,-500.0,0.00020273,2]
[315452770,1709041845539,-500.0,0.00020273,2]
[315452771,1709041845548,-500.0,0.00020273,2]
[315452774,1709041845559,-500.0,0.00020273,2]
[315452775,1709041845568,-1779.05,0.00020273,2]
[315452778,1709041845578,-500.0,0.00020273,2]
[315452779,1709041845587,-1709.43,0.00020273,2]
[315452781,1709041845597,-501.12415207,0.00020273,2]
[315452783,1709041845607,-1526.23,0.00020273,2]
[315452786,1709041845616,-500.0,0.00020273,2]
[315452788,1709041845626,-500.0,0.00020273,2]
[315452790,1709041845635,-500.0,0.00020273,2]
[315452792,1709041845645,-317.207108,0.00020273,2]
[315452794,1709041845654,-500.0,0.00020273,2]
[315452796,1709041845664,-500.0,0.00020273,2]
[315452797,1709041845674,-500.0,0.00020273,2]
[315452799,1709041845683,-1024.55,0.00020273,2]
[315452802,1709041845693,-500.0,0.00020273,2]
[315452804,1709041845704,-500.0,0.00020273,2]
[315452805,1709041845714,-500.0,0.00020273,2]
[315452807,1709041845724,-500.0,0.00020273,2]
[315452810,1709041845733,-515.5973225,0.00020273,2]
[315452811,1709041845743,-788.5,0.00020273,2]
[315452813,1709041845753,-665.43,0.00020273,2]
[315452815,1709041845762,-398.21029264,0.00020273,2]
[315452817,1709041845771,-500.0,0.00020273,2]
[315452819,1709041845782,-961.34,0.00020273,2]
[315452821,1709041845791,-500.0,0.00020273,2]
[315452823,1709041845800,-5073.56,0.00020273,2]
[315452825,1709041845810,-500.0,0.00020273,2]
[315452827,1709041845819,-4248.45,0.00020273,2]
[315452829,1709041845828,-504.26102894,0.00020273,2]
[315452831,1709041845837,-3025.13,0.00020273,2]
[315452833,1709041845846,-3362.47,0.00020273,2]
[315452835,1709041845856,-287.412239,0.00020273,2]
[315452837,1709041845864,-500.0,0.00020273,2]
[315452839,1709041845873,-287.412239,0.00020273,2]
[315452841,1709041845883,-500.0,0.00020273,2]
[315452843,1709041845892,-500.0,0.00020273,2]
[315452845,1709041845901,-500.0,0.00020273,2]
[315452847,1709041845911,-862.76,0.00020273,2]
[315452849,1709041845920,-500.0,0.00020273,2]
[315452851,1709041845930,-2031.26,0.00020273,2]
[315452853,1709041845939,-786.48,0.00020273,2]
[315452855,1709041845947,-2118.34,0.00020273,2]
[315452857,1709041845959,-500.0,0.00020273,2]
[315452859,1709041845968,-500.0,0.00020273,2]
[315452861,1709041845977,-500.0,0.00020273,2]
[315452863,1709041845986,-500.0,0.00020273,2]
[315452865,1709041845996,-10448.94,0.00020273,2]
[315452867,1709041846005,-500.0,0.00020273,2]
[315452869,1709041846014,-500.0,0.00020273,2]
[315452871,1709041846024,-500.0,0.00020273,2]
[315452873,1709041846033,-500.0,0.00020273,2]
[315452875,1709041846042,-2528.87,0.00020273,2]
[315452877,1709041846051,-22967.27,0.00020273,2]
[315452879,1709041846060,-119.82248308,0.00020273,2]
[315452924,1709041846484,-500.0,0.00019178,2]
[315452925,1709041846493,-500.0,0.00019178,2]
[315452926,1709041846506,-480.24751692,0.00020273,2]
[315452928,1709041846515,-788.85248308,0.00020273,2]
[315452932,1709041846545,-500.0,0.00019452,2]
[315452934,1709041846553,-311.56795414,0.00020273,2]
[315453351,1709042049983,678.42863304,0.000125,2]
[315453356,1709042374038,267.416678,0.00017848,2]
[315453360,1709042632907,6000.0,0.00021,21]
[315453362,1709042740345,7500.5763838,0.0001736,2]
[315453364,1709042797703,24900.0,0.00017623,2]
[315453366,1709042867180,158.974517,0.00017866,2]
[315453458,1709043035029,-155.20020827,0.0001802,2]
[315453460,1709043035040,-414.73112733,0.00018021,2]
[315453551,1709043037940,-1464.31504975,0.00018021,2]
[315453553,1709043037953,-249.5002275,0.000188,2]
[315453555,1709043037962,-749.49207088,0.000189,2]
[315453556,1709043037972,-500.0,0.00018997,2]
[315453557,1709043037981,-300.0,0.00018997,2]
[315453558,1709043037990,-11366.57043736,0.00018998,2]
[315453559,1709043037999,-260.72,0.00019168,3]
[315453560,1709043038011,-260.72,0.00019168,3]
[315453561,1709043038021,-87353.37679586,0.00019175,4]
[315453562,1709043038031,-285.23456099,0.00019177,2]
[315453563,1709043038041,-501.97542393,0.00019178,2]
[315453564,1709043038051,-500.0,0.00019178,2]
[315453565,1709043038062,-500.0,0.00019178,2]
[315453566,1709043038072,-500.0,0.00019178,2]
[315453567,1709043038081,-500.0,0.00019178,2]
[315453568,1709043038091,-500.0,0.00019178,2]
[315453569,1709043038100,-500.0,0.00019178,2]
[315453570,1709043038110,-225.81105283,0.00019178,2]
[315453571,1709043038119,-500.0,0.00019178,2]
[315453572,1709043038130,-500.0,0.00019178,2]
[315453573,1709043038139,-500.0,0.00019178,2]
[315453574,1709043038149,-500.0,0.00019178,2]
[315453575,1709043038159,-500.0,0.00019178,2]
[315453576,1709043038168,-500.0,0.00019178,2]
[315453577,1709043038177,-500.0,0.00019178,2]
[315453578,1709043038186,-500.0,0.00019178,2]
[315453579,1709043038196,-500.0,0.00019178,2]
[315453580,1709043038209,-500.0,0.00019178,2]
[315453581,1709043038219,-500.0,0.00019178,2]
[315453582,1709043038228,-332.96266371,0.00019178,2]
[315453583,1709043038237,-500.0,0.00019178,2]
[315453584,1709043038246,-500.0,0.00019178,2]
[315453585,1709043038255,-500.0,0.00019178,2]
[315453586,1709043038264,-238.47583384,0.00019178,2]
[315453587,1709043038273,-1443.33,0.00019178,2]
[315453588,1709043038283,-500.0,0.00019178,2]
[315453589,1709043038291,-373.58267349,0.00019178,2]
[315453590,1709043038300,-500.0,0.00019178,2]
[315453591,1709043038309,-252.75507226,0.00019178,2]
[315453592,1709043038318,-601.31095344,0.00019178,2]
[315453593,1709043038327,-451.77238634,0.00019178,2]
[315453594,1709043038337,-500.0,0.00019178,2]
[315453595,1709043038346,-500.0,0.00019178,2]
[315453596,1709043038356,-500.0,0.00019178,2]
[315453597,1709043038365,-500.0,0.00019178,2]
[315453598,1709043038374,-500.0,0.00019178,2]
[315453599,1709043038496,-500.0,0.00019178,2]
[315453600,1709043038506,-500.0,0.00019178,2]
[315453601,1709043038515,-500.0,0.00019178,2]
[315453602,1709043038524,-500.0,0.00019178,2]
[315453603,1709043038533,-500.0,0.00019178,2]
[315453604,1709043038542,-500.0,0.00019178,2]
[315453605,1709043038551,-500.0,0.00019178,2]
[315453606,1709043038560,-500.0,0.00019178,2]
[315453607,1709043038569,-500.0,0.00019178,2]
[315453608,1709043038578,-500.0,0.00019178,2]
[315453609,1709043038587,-500.0,0.00019178,2]
[315453610,1709043038596,-500.0,0.00019178,2]
[315453611,1709043038605,-500.0,0.00019178,2]
[315453612,1709043038614,-1593.43,0.00019178,2]
[315453613,1709043038624,-500.0,0.00019178,2]
[315453614,1709043038633,-752.86,0.00019178,2]
[315453615,1709043038642,-501.50917574,0.00019178,2]
[315453616,1709043038651,-500.0,0.00019178,2]
[315453617,1709043038660,-190.12652069,0.00019178,2]
[315453618,1709043038669,-500.0,0.00019178,2]
[315453619,1709043038678,-500.0,0.00019178,2]
[315453620,1709043038687,-500.0,0.00019178,2]
[315453621,1709043038696,-500.0,0.00019178,2]
[315453622,1709043038707,-658.77,0.00019178,2]
[315453623,1709043038717,-500.0,0.00019178,2]
[315453624,1709043038726,-1000.0,0.00019178,2]
[315453625,1709043038736,-500.52309887,0.00019178,2]
[315453626,1709043038745,-833.41,0.00019178,2]
[315453627,1709043038755,-500.0,0.00019178,2]
[315453628,1709043038765,-241.83685928,0.00019178,2]
[315453629,1709043038774,-500.0,0.00019178,2]
[315453630,1709043038783,-500.0,0.00019178,2]
[315453631,1709043038792,-500.0,0.00019178,2]
[315453632,1709043038801,-501.23732277,0.00019178,2]
[315453633,1709043038810,-500.0,0.00019178,2]
[315453634,1709043038820,-500.0,0.00019178,2]
[315453635,1709043038830,-500.0,0.00019178,2]
[315453636,1709043038839,-500.0,0.00019178,2]
[315453637,1709043038849,-500.0,0.00019178,2]
[315453638,1709043038859,-500.0,0.00019178,2]
[315453639,1709043038870,-500.0,0.00019178,2]
[315453640,1709043038881,-720.94,0.00019178,2]
[315453641,1709043038890,-500.0,0.00019178,2]
[315453642,1709043038899,-500.0,0.00019178,2]
[315453643,1709043038910,-654.82,0.00019178,2]
[315453644,1709043038921,-500.0,0.00019178,2]
[315453645,1709043038930,-500.0,0.00019178,2]
[315453646,1709043038940,-500.0,0.00019178,2]
[315453647,1709043038951,-500.0,0.00019178,2]
[315453648,1709043038959,-500.0,0.00019178,2]
[315453649,1709043038969,-500.0,0.00019178,2]
[315453650,1709043038980,-1747.19,0.00019178,2]
[315453651,1709043038990,-636.90447411,0.00019178,2]
[315453652,1709043038999,-521.78939552,0.00019178,2]
[315453653,1709043039008,-1636.61,0.00019178,2]
[315453654,1709043039018,-500.0,0.00019178,2]
[315453655,1709043039027,-500.0,0.00019178,2]
[315453656,1709043039036,-500.0,0.00019178,2]
[315453657,1709043039045,-500.0,0.00019178,2]
[315453658,1709043039055,-500.0,0.00019178,2]
[315453659,1709043039064,-500.0,0.00019178,2]
[315453660,1709043039073,-500.0,0.00019178,2]
[315453661,1709043039082,-500.0,0.00019178,2]
[315453662,1709043039091,-500.0,0.00019178,2]
[315453663,1709043039101,-500.0,0.00019178,2]
[315453664,1709043039110,-500.0,0.00019178,2]
[315453665,1709043039119,-500.0,0.00019178,2]
[315453666,1709043039128,-500.0,0.00019178,2]
[315453667,1709043039137,-500.0,0.00019178,2]
[315453668,1709043039146,-1022.66,0.00019178,2]
[315453669,1709043039156,-660.68,0.00019178,2]
[315453670,1709043039165,-220.04820398,0.00019178,2]
[315453671,1709043039174,-500.0,0.00019178,2]
[315453672,1709043039185,-500.0,0.00019178,2]
[315453673,1709043039195,-500.64514974,0.00019178,2]
[315453674,1709043039206,-500.0,0.00019178,2]
[315453675,1709043039215,-500.0,0.00019178,2]
[315453676,1709043039225,-500.0,0.00019178,2]
[315453677,1709043039234,-509.88522936,0.00019178,2]
[315453678,1709043039243,-500.0,0.00019178,2]
[315453679,1709043039252,-921.28,0.00019178,2]
[315453680,1709043039262,-495.61212969,0.00019178,2]
[315453681,1709043039270,-373.72715939,0.00019178,2]
[315453682,1709043039279,-306.64800142,0.00019178,2]
[315453683,1709043039289,-500.0,0.00019178,2]
[315453684,1709043039298,-400.32969916,0.00019178,2]
[315453685,1709043039307,-500.0,0.00019178,2]
[315453686,1709043039316,-1010.15,0.00019178,2]
[315453687,1709043039325,-1209.08,0.00019178,2]
[315453688,1709043039334,-1453.07,0.00019178,2]
[315453689,1709043039343,-500.0,0.00019178,2]
[315453690,1709043039352,-500.0,0.00019178,2]
[315453691,1709043039361,-155.0,0.00019178,2]
[315453692,1709043039370,-2899.08,0.00019178,2]
[315453693,1709043039379,-790.86,0.00019178,2]
[315453694,1709043039389,-500.0,0.00019178,2]
[315453696,1709043039398,-2030.08,0.00019178,2]
[315453697,1709043039408,-500.0,0.00019178,2]
[315453698,1709043039417,-500.0,0.00019178,2]
[315453699,1709043039426,-241.11026349,0.00019178,2]
[315453700,1709043039435,-500.0,0.00019178,2]
[315453701,1709043039448,-500.0,0.00019178,2]
[315453702,1709043039459,-500.0,0.00019178,2]
[315453703,1709043039469,-500.0,0.00019178,2]
[315453704,1709043039478,-500.0,0.00019178,2]
[315453705,1709043039488,-500.0,0.00019178,2]
[315453706,1709043039497,-1861.99,0.00019178,2]
[315453707,1709043039506,-500.0,0.00019178,2]
[315453708,1709043039516,-500.0,0.00019178,2]
[315453709,1709043039525,-500.0,0.00019178,2]
[315453710,1709043039534,-530.05,0.00019178,2]
[315453711,1709043039544,-500.0,0.00019178,2]
[315453712,1709043039553,-500.82063476,0.00019178,2]
[315453713,1709043039562,-500.97693957,0.00019178,2]
[315453714,1709043039572,-500.0,0.00019178,2]
[315453715,1709043039582,-551.11345887,0.00019178,2]
[315453716,1709043039591,-500.0,0.00019178,2]
[315453717,1709043039600,-336.834071,0.00019178,2]
[315453718,1709043039613,-500.0,0.00019178,2]
[315453719,1709043039623,-500.0,0.00019178,2]
[315453720,1709043039633,-1918.61,0.00019178,2]
[315453721,1709043039642,-500.0,0.00019178,2]
[315453722,1709043039651,-500.0,0.00019178,2]
[315453723,1709043039660,-500.0,0.00019178,2]
[315453724,1709043039670,-9578.19,0.00019178,2]
[315453725,1709043039679,-500.0,0.00019178,2]
[315453726,1709043039688,-500.0,0.00019178,2]
[315453727,1709043039699,-500.0,0.00019178,2]
[315453728,1709043039710,-500.0,0.00019178,2]
[315453729,1709043039719,-5011.11,0.00019178,2]
[315453730,1709043039729,-500.0,0.00019178,2]
[315453731,1709043039738,-500.0,0.00019178,2]
[315453732,1709043039747,-500.65277545,0.00019178,2]
[315453733,1709043039757,-2212.77,0.00019178,2]
[315453734,1709043039766,-500.0,0.00019178,2]
[315453735,1709043039775,-500.0,0.00019178,2]
[315453736,1709043039784,-500.0,0.00019178,2]
[315453737,1709043039794,-500.0,0.00019178,2]
[315453738,1709043039804,-500.0,0.00019178,2]
[315453739,1709043039814,-500.0,0.00019178,2]
[315453740,1709043039823,-618.23,0.00019178,2]
[315453741,1709043039832,-500.0,0.00019178,2]
[315453742,1709043039841,-500.0,0.00019178,2]
[315453743,1709043039851,-500.0,0.00019178,2]
[315453744,1709043039860,-625.25473972,0.00019178,2]
[315453745,1709043039870,-500.0,0.00019178,2]
[315453746,1709043039880,-500.0,0.00019178,2]
[315453747,1709043039889,-21053.33,0.00019178,2]
[315453748,1709043039901,-569.83,0.00019178,2]
[315453749,1709043039911,-500.0,0.00019178,2]
[315453750,1709043039921,-500.0,0.00019178,2]
[315453751,1709043039931,-500.0,0.00019178,2]
[315453752,1709043039941,-501.65770956,0.00019178,2]
[315453753,1709043039952,-4943.6,0.00019178,2]
[315453754,1709043039961,-500.35101391,0.00019178,2]
[315453755,1709043039971,-501.12706915,0.00019178,2]
[315453756,1709043039982,-576.30378723,0.00019178,2]
[315453757,1709043039991,-618.37454632,0.00019178,2]
[315453758,1709043040000,-500.0,0.00019178,2]
[315453759,1709043040010,-500.0,0.00019178,2]
[315453760,1709043040019,-500.0,0.00019178,2]
[315453761,1709043040029,-500.32824519,0.00019178,2]
[315453762,1709043040038,-500.0,0.00019178,2]
[315453763,1709043040048,-3766.8,0.00019178,2]
[315453764,1709043040058,-500.0,0.00019178,2]
[315453765,1709043040067,-500.11571016,0.00019178,2]
[315453766,1709043040077,-500.0,0.00019178,2]
[315453767,1709043040086,-500.0,0.00019178,2]
[315453768,1709043040095,-1683.31,0.00019178,2]
[315453769,1709043040104,-1497.92,0.00019178,2]
[315453770,1709043040114,-500.0,0.00019178,2]
[315453771,1709043040123,-1571.21,0.00019178,2]
[315453773,1709043040132,-7100.11,0.00019178,2]
[315453775,1709043040142,-508.23691754,0.00019178,2]
[315453777,1709043040152,-171.73712487,0.00019178,2]
[315453778,1709043040161,-500.0,0.00019178,2]
[315453779,1709043040171,-2557.4,0.00019178,2]
[315453780,1709043040181,-500.0,0.00019178,2]
[315453781,1709043040191,-219.53147788,0.00019178,2]
[315453783,1709043040203,-310.0,0.00019178,2]
[315453785,1709043040213,-4862.16,0.00019178,2]
[315453787,1709043040222,-635.9,0.00019178,2]
[315453789,1709043040231,-240.1435452,0.00019178,2]
[315453791,1709043040241,-500.0,0.00019178,2]
[315453792,1709043040250,-3782.37,0.00019178,2]
[315453794,1709043040260,-20111.84,0.00019178,2]
[315453796,1709043040269,-500.0,0.00019178,2]
[315453798,1709043040278,-500.0,0.00019178,2]
[315453800,1709043040288,-500.0,0.00019178,2]
[315453802,1709043040297,-210.59816599,0.00019178,2]
[315453803,1709043040306,-4071.43,0.00019178,2]
[315453805,1709043040316,-890.51,0.00019178,2]
[315453807,1709043040325,-3222.37,0.00019178,2]
[315453809,1709043040335,-500.0,0.00019178,2]
[315453810,1709043040344,-394.21638932,0.00019178,2]
[315453811,1709043040353,-1029.33,0.00019178,2]
[315453812,1709043040363,-500.0,0.00019178,2]
[315453813,1709043040373,-694.82180753,0.00019178,2]
[315453814,1709043040383,-166.666666,0.00019178,2]
[315453815,1709043040393,-175.995247,0.00019178,2]
[315453816,1709043040402,-263.7890371,0.00019352,2]
[315453817,1709043040411,-704.14144082,0.00019441,2]
[315453818,1709043040421,-500.0,0.00019452,2]
[315453819,1709043040430,-500.0,0.00019452,2]
[315453820,1709043040439,-500.0,0.00019452,2]
[315453821,1709043040449,-500.0,0.00019452,2]
[315453822,1709043040461,-500.0,0.00019452,2]
[315453823,1709043040471,-500.0,0.00019452,2]
[315453824,1709043040480,-337.0351218,0.00019452,2]
[315453825,1709043040490,-568.85457968,0.00019452,2]
[315453826,1709043040499,-500.0,0.00019452,2]
[315453827,1709043040509,-500.0,0.00019452,2]
[315453828,1709043040519,-500.0,0.00019452,2]
[315453829,1709043040528,-502.85792086,0.00019452,2]
[315453830,1709043040624,-500.0,0.00019452,2]
[315453831,1709043040633,-500.0,0.00019452,2]
[315453832,1709043040642,-500.0,0.00019452,2]
[315453833,1709043040651,-1443.33,0.00019452,2]
[315453834,1709043040661,-500.0,0.00019452,2]
[315453835,1709043040671,-500.0,0.00019452,2]
[315453836,1709043040680,-500.0,0.00019452,2]
[315453837,1709043040690,-500.0,0.00019452,2]
[315453838,1709043040699,-502.36541284,0.00019452,2]
[315453839,1709043040710,-500.0,0.00019452,2]
[315453840,1709043040720,-501.95643743,0.00019452,2]
[315453841,1709043040729,-500.0,0.00019452,2]
[315453842,1709043040738,-500.0,0.00019452,2]
[315453843,1709043040748,-500.0,0.00019452,2]
[315453844,1709043040757,-500.0,0.00019452,2]
[315453845,1709043040766,-500.0,0.00019452,2]
[315453846,1709043040775,-500.0,0.00019452,2]
[315453847,1709043040785,-500.0,0.00019452,2]
[315453848,1709043040794,-500.0,0.00019452,2]
[315453849,1709043040803,-500.0,0.00019452,2]
[315453850,1709043040813,-501.21301573,0.00019452,2]
[315453851,1709043040822,-500.0,0.00019452,2]
[315453852,1709043040831,-1593.43,0.00019452,2]
[315453853,1709043040841,-500.0,0.00019452,2]
[315453854,1709043040862,-752.86,0.00019452,2]
[315453855,1709043040872,-500.0,0.00019452,2]
[315453856,1709043040882,-500.0,0.00019452,2]
[315453857,1709043040892,-282.98479173,0.00019452,2]
[315453858,1709043040904,-500.0,0.00019452,2]
[315453859,1709043040914,-500.0,0.00019452,2]
[315453860,1709043040924,-658.77,0.00019452,2]
[315453861,1709043040934,-500.0,0.00019452,2]
[315453862,1709043040944,-160.72308855,0.00019452,2]
[315453863,1709043040955,-833.41,0.00019452,2]
[315453865,1709043040965,-211.14111785,0.00019452,2]
[315453867,1709043040975,-500.0,0.00019452,2]
[315453869,1709043040986,-500.0,0.00019452,2]
[315453871,1709043040995,-500.0,0.00019452,2]
[315453873,1709043041004,-500.0,0.00019452,2]
[315453875,1709043041014,-500.0,0.00019452,2]
[315453877,1709043041024,-500.0,0.00019452,2]
[315453879,1709043041033,-500.0,0.00019452,2]
[315453881,1709043041042,-535.12050427,0.00019452,2]
[315453883,1709043041052,-417.34105156,0.00019452,2]
[315453884,1709043041061,-720.94,0.00019452,2]
[315453885,1709043041071,-500.0,0.00019452,2]
[315453886,1709043041081,-162.83762222,0.00019452,2]
[315453887,1709043041090,-654.82,0.00019452,2]
[315453888,1709043041100,-500.0,0.00019452,2]
[315453889,1709043041109,-500.0,0.00019452,2]
[315453890,1709043041118,-500.0,0.00019452,2]
[315453891,1709043041127,-500.0,0.00019452,2]
[315453892,1709043041137,-500.0,0.00019452,2]
[315453893,1709043041146,-500.0,0.00019452,2]
[315453894,1709043041156,-1747.19,0.00019452,2]
[315453895,1709043041165,-1636.61,0.00019452,2]
[315453896,1709043041174,-500.0,0.00019452,2]
[315453897,1709043041184,-500.0,0.00019452,2]
[315453898,1709043041193,-500.0,0.00019452,2]
[315453899,1709043041203,-382.1661985,0.00019452,2]
[315453900,1709043041213,-500.0,0.00019452,2]
[315453901,1709043041222,-500.0,0.00019452,2]
[315453902,1709043041232,-500.0,0.00019452,2]
[315453903,1709043041241,-500.0,0.00019452,2]
[315453904,1709043041250,-500.0,0.00019452,2]
[315453905,1709043041260,-1022.66,0.00019452,2]
[315453906,1709043041268,-660.68,0.00019452,2]
[315453908,1709043041278,-500.0,0.00019452,2]
[315453910,1709043041287,-500.0,0.00019452,2]
[315453912,1709043041297,-500.0,0.00019452,2]
[315453914,1709043041306,-500.0,0.00019452,2]
[315453916,1709043041315,-500.0,0.00019452,2]
[315453918,1709043041325,-500.0,0.00019452,2]
[315453921,1709043041335,-921.28,0.00019452,2]
[315453922,1709043041344,-500.0,0.00019452,2]
[315453923,1709043041354,-500.0,0.00019452,2]
[315453924,1709043041363,-1010.15,0.00019452,2]
[315453925,1709043041373,-1209.08,0.00019452,2]
[315453926,1709043041383,-1453.07,0.00019452,2]
[315453927,1709043041392,-500.0,0.00019452,2]
[315453928,1709043041401,-500.0,0.00019452,2]
[315453929,1709043041411,-2899.08,0.00019452,2]
[315453930,1709043041421,-790.86,0.00019452,2]
[315453931,1709043041430,-500.0,0.00019452,2]
[315453932,1709043041440,-2030.08,0.00019452,2]
[315453933,1709043041449,-500.0,0.00019452,2]
[315453934,1709043041460,-500.0,0.00019452,2]
[315453935,1709043041469,-500.0,0.00019452,2]
[315453936,1709043041478,-500.0,0.00019452,2]
[315453937,1709043041488,-500.0,0.00019452,2]
[315453938,1709043041498,-500.0,0.00019452,2]
[315453939,1709043041507,-1861.99,0.00019452,2]
[315453940,1709043041516,-500.0,0.00019452,2]
[315453941,1709043041525,-500.0,0.00019452,2]
[315453942,1709043041535,-530.05,0.00019452,2]
[315453943,1709043041544,-500.71114628,0.00019452,2]
[315453944,1709043041553,-426.64264298,0.00019452,2]
[315453945,1709043041563,-500.0,0.00019452,2]
[315453946,1709043041579,-500.0,0.00019452,2]